bitfinex-derivatives/quotes_SOLF0:USTF0_20250505
["timestamp","ask_amount","ask_price","bid_price","bid_amount"]
[1746438950542,3.75907826,146.31,146.29,6.835]
[1746438950733,30.5942,146.32,146.29,6.835]
[1746438951136,6.8345,146.31,146.29,6.835]
[1746438951340,6.8345,146.31,146.28,6.8356]
[1746438952431,6.835,146.3,146.28,6.8356]
[1746438958540,10.59377826,146.31,146.28,6.8356]
[1746438960241,6.8349,146.3,146.28,6.8356]
[1746438961245,6.8353,146.29,146.27,10.9809]
[1746438962343,3.75907826,146.29,146.26,2.0292]
[1746438963344,6.836,146.28,146.26,8.8659]
[1746438963946,3.75907826,146.27,146.26,2.0292]
[1746438964548,10.59537826,146.27,146.26,2.0292]
[1746438964746,10.59537826,146.27,146.24,6.8374]
[1746438965141,6.8369,146.26,146.23,6.8379]
[1746438965341,6.8369,146.26,146.22,2.1005]
[1746438965749,3.75907826,146.27,146.24,1.0]
[1746438966247,6.8367,146.26,146.24,1.0]
[1746438968347,3.75907826,146.27,146.24,7.8377]
[1746438968646,3.75907826,146.27,146.24,1.0]
[1746438969047,6.8368,146.26,146.24,1.0]
[1746438970449,10.59557826,146.27,146.24,1.0]
[1746438970951,6.8368,146.26,146.24,1.0]
[1746438972448,10.59557826,146.27,146.24,1.0]
[1746438973754,6.8369,146.26,146.24,1.0]
[1746438974754,10.59557826,146.27,146.24,1.0]
[1746438974951,10.59557826,146.27,146.24,7.8376]
[1746438975456,10.59557826,146.27,146.24,1.0]
[1746438976058,3.75907826,146.27,146.24,7.8374]
[1746438976655,10.59567826,146.27,146.24,7.8374]
[1746438977958,30.596,146.28,146.25,6.8372]
[1746438978458,6.8365,146.27,146.24,7.8376]
[1746438978656,23.76,146.28,146.24,1.0]
[1746438979157,30.596,146.28,146.25,6.8369]
[1746438980459,6.8363,146.27,146.25,6.8369]
[1746438980660,23.76,146.28,146.25,6.8369]
[1746438980961,30.5961,146.28,146.25,6.8369]
[1746438981764,30.5961,146.28,146.25,6.8367]
[1746438981959,23.76,146.28,146.24,1.0]
[1746438982457,23.76,146.28,146.26,6.8365]
[1746438983363,30.5959,146.28,146.26,6.8365]
[1746438984164,30.5959,146.28,146.25,6.837]
[1746438985663,30.5959,146.28,146.26,6.8367]
[1746438990463,30.5959,146.28,146.25,6.837]
[1746438990667,23.76,146.28,146.24,1.0]
[1746438991772,30.596,146.28,146.26,6.8367]
[1746438993974,30.596,146.28,146.25,6.837]
[1746438995973,30.596,146.28,146.26,6.8367]
[1746438997273,6.8363,146.27,146.25,6.837]
[1746439000381,30.5961,146.28,146.25,6.837]
[1746439001978,6.8364,146.27,146.25,6.837]
[1746439002678,6.8364,146.27,146.24,7.8375]
[1746439002679,6.837,146.26,146.24,7.8375]
[1746439002879,3.75907826,146.27,146.24,1.0]
[1746439003075,23.76,146.28,146.24,1.0]
[1746439003076,3.75907826,146.25,146.24,1.0]
[1746439003275,10.59627826,146.25,146.24,1.0]
[1746439009892,3.75907826,146.25,146.17,29.9305]
[1746439010089,3.75907826,146.22,146.17,4.1334]
[1746439010486,6.8393,146.21,146.18,6.84]
[1746439015892,3.75907826,146.22,146.18,6.84]
[1746439016389,6.8396,146.2,146.17,4.1334]
[1746439017292,6.8396,146.2,146.17,10.9742]
[1746439017495,6.8401,146.19,146.17,10.9742]
[1746439018094,6.8398,146.2,146.17,10.9742]
[1746439018596,6.8402,146.19,146.17,4.1334]
[1746439018785,6.8402,146.19,146.17,2.084]
[1746439019192,6.8405,146.18,146.15,6.8418]
[1746439019594,23.82,146.2,146.14,3.75907826]
[1746439019898,6.8402,146.19,146.16,6.8411]
[1746439020400,23.82,146.2,146.17,6.8407]
[1746439021198,6.8403,146.19,146.16,10.60027826]
[1746439021500,6.8403,146.19,146.16,3.75907826]
[1746439023201,6.8403,146.19,146.17,6.8409]
[1746439023701,6.8405,146.18,146.16,6.8412]
[1746439024206,6.8402,146.19,146.16,6.8412]
[1746439024902,6.8402,146.19,146.17,6.8409]
[1746439026000,30.6599,146.2,146.18,6.8404]
[1746439026607,30.6599,146.2,146.17,6.8407]
[1746439027505,30.6599,146.2,146.18,6.8405]
[1746439027706,6.8403,146.19,146.15,3.75907826]
[1746439028005,23.82,146.2,146.17,7.8406]
[1746439028304,30.6598,146.2,146.17,1.0]
[1746439028803,30.6598,146.2,146.18,6.8404]
[1746439029207,30.6598,146.2,146.17,7.8407]
[1746439029504,6.84,146.19,146.17,7.8407]
[1746439033810,6.84,146.19,146.17,1.0]
[1746439034910,6.8405,146.18,146.17,1.0]
[1746439036513,6.8403,146.19,146.17,1.0]
[1746439036809,6.8403,146.19,146.17,7.8409]
[1746439037310,6.8403,146.19,146.17,1.0]
[1746439037709,27.57907826,146.2,146.17,1.0]
[1746439038012,10.59957826,146.18,146.17,1.0]
[1746439039611,10.59957826,146.18,146.17,1.0]
[1746439041612,10.59927826,146.19,146.17,1.0]
[1746439042008,10.59927826,146.19,146.17,7.8407]
[1746439042303,30.6598,146.2,146.17,7.8407]
[1746439042506,23.82,146.2,146.17,7.8407]
[1746439042913,6.8402,146.19,146.17,7.8407]
[1746439043411,10.59927826,146.19,146.17,1.0]
[1746439044514,27.57907826,146.2,146.17,1.0]
[1746439045013,27.57907826,146.2,146.18,6.8402]
[1746439045213,34.41887826,146.2,146.18,6.8402]
[1746439045406,27.57907826,146.2,146.17,7.8407]
[1746439045603,34.41887826,146.2,146.17,7.8407]
[1746439046013,27.57907826,146.2,146.17,7.8407]
[1746439046513,6.8404,146.19,146.17,7.8407]
[1746439050012,6.8405,146.18,146.17,1.0]
[1746439050616,10.59957826,146.18,146.17,1.0]
[1746439052111,6.8405,146.18,146.17,1.0]
[1746439052516,10.59957826,146.18,146.17,1.0]
[1746439061918,6.8405,146.18,146.17,1.0]
[1746439077531,10.59937826,146.19,146.17,1.0]
[1746439077835,3.75907826,146.19,146.17,1.0]
[1746439079326,6.8405,146.18,146.17,1.0]
[1746439097446,3.75907826,146.19,146.09,23.94]
[1746439097652,3.75907826,146.16,146.1,5.82217826]
[1746439097848,27.69907826,146.16,146.1,5.82217826]
[1746439098144,6.8419,146.15,146.12,6.843]
[1746439101952,6.8424,146.14,146.12,6.843]
[1746439103351,6.8424,146.14,146.11,6.8436]
[1746439105855,6.8421,146.15,146.12,6.8433]
[1746439106756,27.69907826,146.16,146.12,6.8433]
[1746439107460,6.8425,146.14,146.12,6.8433]
[1746439107650,6.8425,146.14,146.1,5.82217826]
[1746439107850,6.8425,146.14,146.1,2.0631]
[1746439108050,6.8425,146.14,146.1,5.82217826]
[1746439108856,6.8425,146.14,146.11,6.8433]
[1746439111059,6.8425,146.14,146.1,5.82217826]
[1746439111549,6.8421,146.15,146.12,6.843]
[1746439112862,6.8424,146.14,146.12,6.843]
[1746439113160,6.8424,146.14,146.11,6.8435]
[1746439114959,6.8432,146.13,146.1,12.66617826]
[1746439115256,23.94,146.16,146.1,2.0631]
[1746439115461,6.8427,146.14,146.1,5.82217826]
[1746439115959,6.8427,146.14,146.11,6.8433]
[1746439116762,6.843,146.13,146.11,6.8433]
[1746439117061,6.843,146.13,146.1,12.66617826]
[1746439117264,6.843,146.13,146.1,5.82217826]
[1746439117657,6.843,146.13,146.11,6.8436]
[1746439118159,6.843,146.13,146.1,5.82217826]
[1746439118465,6.843,146.13,146.1,12.66597826]
[1746439118861,6.843,146.13,146.11,6.8437]
[1746439125171,6.8426,146.14,146.12,6.8433]
[1746439129673,30.7819,146.16,146.13,6.8425]
[1746439129870,23.94,146.16,146.13,6.8425]
[1746439130276,6.8422,146.15,146.13,6.8425]
[1746439131576,6.8429,146.13,146.1,2.0631]
[1746439132572,6.8429,146.13,146.1,8.9069]
[1746439132878,6.8426,146.14,146.1,2.0631]
[1746439133078,3.75907826,146.15,146.1,2.0631]
[1746439133276,27.69907826,146.16,146.1,2.0631]
[1746439133880,6.8427,146.14,146.11,6.8437]
[1746439135082,27.69907826,146.16,146.11,3.75907826]
[1746439135581,6.8421,146.15,146.12,6.8431]
[1746439135978,27.69907826,146.16,146.1,2.0631]
[1746439136384,6.8426,146.14,146.11,6.8437]
[1746439138983,6.8426,146.14,146.12,6.8433]
[1746439139483,6.8421,146.15,146.12,6.8433]
[1746439139885,23.94,146.16,146.12,6.8433]
[1746439140081,6.842,146.15,146.12,6.8433]
[1746439140878,6.842,146.15,146.1,2.0631]
[1746439140879,30.7816,146.16,146.13,6.8427]
[1746439141081,30.7816,146.16,146.11,3.75907826]
[1746439141384,23.94,146.16,146.11,3.75907826]
[1746439141882,6.8419,146.15,146.13,6.8426]
[1746439143079,23.94,146.16,146.11,3.75907826]
[1746439143682,6.8424,146.14,146.12,6.843]
[1746439143882,23.94,146.16,146.12,6.843]
[1746439144183,6.8421,146.15,146.12,6.843]
[1746439146285,6.8426,146.14,146.12,6.843]
[1746439146685,23.94,146.16,146.12,6.843]
[1746439146985,6.8424,146.14,146.12,6.843]
[1746439148793,6.8424,146.14,146.11,3.75907826]
[1746439149495,6.8424,146.14,146.12,6.8433]
[1746439151004,6.8422,146.15,146.12,6.8433]
[1746439151198,23.94,146.16,146.12,6.8433]
[1746439151603,6.8426,146.14,146.12,6.8433]
[1746439151897,23.94,146.16,146.11,10.60257826]
[1746439152598,6.8431,146.13,146.11,10.60257826]
[1746439152899,6.8431,146.13,146.11,11.60257826]
[1746439153501,6.8431,146.13,146.12,6.8433]
[1746439154805,6.8431,146.13,146.11,11.60257826]
[1746439155608,6.8431,146.13,146.11,7.8435]
[1746439159909,6.8433,146.12,146.11,1.0]
[1746439162909,6.843,146.13,146.11,7.8438]
[1746439169405,6.8426,146.14,146.11,7.8438]
[1746439173010,6.8421,146.15,146.11,4.75907826]
[1746439173510,6.8421,146.15,146.12,6.8429]
[1746439174512,6.8424,146.14,146.12,6.8429]
[1746439178615,6.8421,146.15,146.12,6.8429]
[1746439180918,6.8421,146.15,146.12,6.8432]
[1746439185319,30.7817,146.16,146.13,6.8428]
[1746439186217,6.842,146.15,146.13,6.8428]
[1746439187220,6.842,146.15,146.12,6.8431]
[1746439189624,6.842,146.15,146.13,6.8428]
[1746439189822,23.94,146.16,146.11,4.75907826]
[1746439190222,23.94,146.16,146.14,6.8421]
[1746439191717,3.75907826,146.18,146.13,3.75907826]
[1746439192525,10.59987826,146.18,146.15,6.8416]
[1746439193325,10.59987826,146.18,146.14,6.8424]
[1746439193625,6.841,146.17,146.13,3.75907826]
[1746439193827,6.841,146.17,146.13,10.60157826]
[1746439195030,6.8417,146.16,146.13,10.60157826]
[1746439202731,6.842,146.15,146.13,10.60157826]
[1746439203233,6.842,146.15,146.13,3.75907826]
[1746439203430,3.75907826,146.18,146.11,8.85037826]
[1746439203727,3.75907826,146.16,146.11,8.85037826]
[1746439203931,6.8433,146.13,146.11,4.75907826]
[1746439204133,3.75907826,146.16,146.11,4.75907826]
[1746439204333,6.8426,146.14,146.11,11.60257826]
[1746439204937,6.8426,146.14,146.12,6.8433]
[1746439206336,6.8426,146.14,146.11,11.60257826]
[1746439206532,6.8429,146.13,146.11,4.75907826]
[1746439206733,6.8429,146.13,146.11,1.0]
[1746439207836,6.8426,146.14,146.11,1.0]
[1746439208036,3.75907826,146.16,146.11,1.0]
[1746439208337,6.8432,146.13,146.11,1.0]
[1746439209135,3.75907826,146.16,146.11,1.0]
[1746439209136,6.8433,146.12,146.11,1.0]
[1746439209728,3.75907826,146.14,146.11,1.0]
[1746439210339,6.8433,146.12,146.11,1.0]
[1746439211342,3.75907826,146.14,146.11,1.0]
[1746439212341,3.75907826,146.14,146.11,7.8436]
[1746439212842,10.60167826,146.14,146.11,7.8436]
[1746439213044,24.26,146.15,146.11,1.0]
[1746439213244,3.75907826,146.16,146.11,1.0]
[1746439213843,6.8426,146.14,146.11,7.8435]
[1746439214942,6.8426,146.14,146.12,6.8433]
[1746439215441,6.8426,146.14,146.11,2.0]
[1746439215842,3.75907826,146.16,146.11,2.0]
[1746439216636,6.8431,146.13,146.11,2.0]
[1746439217439,6.8431,146.13,146.11,8.8437]
[1746439217636,6.8426,146.14,146.11,8.8437]
[1746439219545,6.8429,146.13,146.11,8.8437]
[1746439221047,6.8426,146.14,146.12,6.8433]
[1746439221242,24.26,146.15,146.11,2.0]
[1746439221644,6.8426,146.14,146.12,6.8432]
[1746439222547,6.8428,146.13,146.11,8.8435]
[1746439222759,24.26,146.15,146.11,2.0]
[1746439223141,31.1023,146.15,146.12,6.8432]
[1746439223549,31.1023,146.15,146.11,2.0]
[1746439224650,31.1023,146.15,146.13,6.8426]
[1746439226151,24.26,146.15,146.13,6.8426]
[1746439226347,28.01907826,146.18,146.12,3.75907826]
[1746439226752,6.8413,146.17,146.12,3.75907826]
[1746439227246,28.01907826,146.18,146.12,3.75907826]
[1746439227652,6.8414,146.16,146.14,6.842]
[1746439228153,6.8412,146.17,146.14,6.842]
[1746439228649,6.8412,146.17,146.15,6.8418]
[1746439229557,6.8416,146.16,146.14,6.8421]
[1746439231056,6.8412,146.17,146.15,6.8419]
[1746439231257,28.01907826,146.18,146.12,3.75907826]
[1746439232354,6.8418,146.16,146.13,6.8424]
[1746439234662,6.842,146.15,146.13,6.8424]
[1746439239156,6.8424,146.14,146.12,3.75907826]
[1746439239364,28.01907826,146.18,146.11,2.0]
[1746439239365,3.75907826,146.16,146.11,2.0]
[1746439239563,24.26,146.18,146.13,3.75907826]
[1746439240264,31.1008,146.18,146.13,3.75907826]
[1746439240565,31.1008,146.18,146.16,6.8414]
[1746439240965,24.26,146.18,146.16,6.8414]
[1746439241263,24.26,146.18,146.17,6.841]
[1746439241466,6.8402,146.19,146.11,4.1407]
[1746439241655,6.8402,146.19,146.14,3.75907826]
[1746439242466,6.8402,146.19,146.16,6.8412]
[1746439242864,6.8402,146.19,146.14,3.75907826]
[1746439243165,6.8402,146.19,146.16,6.841]
[1746439244766,6.8402,146.19,146.14,3.75907826]
[1746439246061,6.8402,146.19,146.16,6.841]
[1746439249970,6.8405,146.18,146.16,6.841]
[1746439251972,6.8402,146.19,146.17,6.841]
[1746439256778,10.59887826,146.2,146.18,6.8404]
[1746439256968,6.8398,146.2,146.18,6.8404]
[1746439260770,6.8398,146.2,146.17,6.8407]
[1746439261068,24.18,146.21,146.15,3.75907826]
[1746439261473,24.18,146.21,146.17,6.8409]
[1746439261674,6.8403,146.19,146.15,3.75907826]
[1746439262177,6.8403,146.19,146.16,6.8412]
[1746439262375,6.8397,146.2,146.15,3.75907826]
[1746439262876,6.8397,146.2,146.17,6.8407]
[1746439263271,6.8397,146.2,146.15,3.75907826]
[1746439263875,31.0193,146.21,146.15,3.75907826]
[1746439265277,31.0193,146.21,146.18,6.8403]
[1746439267778,6.8401,146.19,146.14,4.0846]
[1746439267976,6.8401,146.19,146.14,7.84367826]
[1746439268173,24.18,146.21,146.14,7.84367826]
[1746439268378,6.8398,146.2,146.17,6.8409]
[1746439270268,6.84,146.19,146.17,6.8409]
[1746439274277,24.18,146.21,146.17,6.8409]
[1746439274978,6.8396,146.2,146.17,6.8409]
[1746439275380,24.18,146.21,146.17,6.8409]
[1746439275581,6.8396,146.2,146.17,6.8409]
[1746439276283,6.84,146.19,146.17,6.8409]
[1746439276580,3.75907826,146.2,146.14,2.1397]
[1746439276770,6.8411,146.17,146.14,2.1397]
[1746439276971,6.8411,146.17,146.14,6.842]
[1746439277175,3.75907826,146.18,146.11,4.1407]
[1746439277475,6.8419,146.15,146.11,7.89977826]
[1746439277677,2.1147,146.2,146.13,3.75907826]
[1746439277877,5.87377826,146.2,146.13,3.75907826]
[1746439278073,6.8408,146.18,146.14,6.842]
[1746439279484,6.8408,146.18,146.15,6.8418]
[1746439280989,6.8408,146.18,146.16,6.8413]
[1746439281283,6.8402,146.19,146.16,6.8413]
[1746439281488,3.75907826,146.2,146.17,6.8406]
[1746439281792,24.18,146.21,146.15,3.75907826]
[1746439282087,24.18,146.21,146.18,6.8403]
[1746439282489,24.18,146.21,146.15,3.75907826]
[1746439282690,24.18,146.21,146.19,6.84]
[1746439283190,31.0192,146.21,146.18,6.8403]
[1746439288294,24.18,146.21,146.18,6.8403]
[1746439288589,24.1,146.24,146.19,3.75907826]
[1746439289191,6.8384,146.23,146.2,6.8392]
[1746439289494,6.8384,146.23,146.19,3.75907826]
[1746439290389,6.8384,146.23,146.2,6.8395]
[1746439292089,27.85907826,146.24,146.18,27.85907826]
[1746439292392,3.75907826,146.22,146.17,3.75907826]
[1746439292792,3.75907826,146.22,146.16,5.78607826]
[1746439292990,3.75907826,146.22,146.16,3.75907826]
[1746439293496,6.8399,146.2,146.17,6.8407]
[1746439295593,3.75907826,146.2,146.15,34.9022]
[1746439295898,3.75907826,146.2,146.15,30.9416]
[1746439296396,6.8412,146.17,146.15,24.1]
[1746439296593,6.8412,146.17,146.14,3.75907826]
[1746439297097,6.8416,146.16,146.14,10.60117826]
[1746439297296,28.29907826,146.2,146.14,10.60117826]
[1746439298096,6.8413,146.17,146.14,10.60117826]
[1746439298397,6.8413,146.17,146.15,6.8418]
[1746439305201,6.8407,146.18,146.15,6.8418]
[1746439305499,28.29907826,146.2,146.15,6.8418]
[1746439306304,6.841,146.17,146.15,6.8418]
[1746439308597,6.841,146.17,146.14,6.8421]
[1746439310102,28.29907826,146.2,146.15,6.8419]
[1746439310303,28.29907826,146.2,146.13,3.75907826]
[1746439311202,6.8414,146.17,146.14,6.8421]
[1746439312202,6.8415,146.16,146.14,6.8421]
[1746439314600,6.8412,146.17,146.15,6.8417]
[1746439316204,6.8414,146.16,146.14,6.8421]
[1746439318510,6.8412,146.17,146.14,6.8421]
[1746439322308,6.8412,146.17,146.15,6.8419]
[1746439323014,6.8407,146.18,146.16,6.8414]
[1746439323401,6.8407,146.18,146.15,3.75907826]
[1746439323611,6.8407,146.18,146.15,10.60057826]
[1746439323909,6.841,146.17,146.15,10.60057826]
[1746439330017,6.841,146.17,146.15,6.8415]
[1746439340224,6.841,146.17,146.15,7.8415]
[1746439341128,6.8407,146.18,146.16,6.8414]
[1746439341728,6.8407,146.18,146.15,7.8416]
[1746439342729,6.8411,146.17,146.15,7.8416]
[1746439343125,28.29907826,146.2,146.16,6.8414]
[1746439343325,6.8407,146.18,146.15,1.0]
[1746439343926,6.841,146.17,146.15,7.8416]
[1746439344226,28.29907826,146.2,146.15,1.0]
[1746439344429,6.8407,146.18,146.15,1.0]
[1746439345028,6.8407,146.18,146.15,7.8415]
[1746439346930,6.8407,146.18,146.16,6.8414]
[1746439347318,6.8407,146.18,146.15,1.0]
[1746439348032,6.8407,146.18,146.15,7.8416]
[1746439349330,6.8407,146.18,146.16,6.8414]
[1746439350230,6.8407,146.18,146.15,7.8417]
[1746439351433,6.841,146.17,146.15,7.8417]
[1746439370244,6.8407,146.18,146.16,6.8414]
[1746439371148,6.841,146.17,146.16,6.8414]
[1746439371445,6.841,146.17,146.15,7.8417]
[1746439372047,6.8407,146.18,146.16,6.8414]
[1746439376248,28.31568261,146.2,146.15,1.0]
[1746439376448,24.54,146.2,146.18,3.77568261]
[1746439376644,24.24,146.23,146.18,3.77568261]
[1746439376847,6.8389,146.22,146.19,6.8397]
[1746439377046,6.8389,146.22,146.18,3.77568261]
[1746439377847,24.24,146.23,146.18,3.77568261]
[1746439378053,6.8391,146.21,146.19,6.8398]
[1746439381147,3.77568261,146.2,146.16,24.24]
[1746439381347,3.77568261,146.2,146.15,4.77568261]
[1746439381652,6.8403,146.19,146.16,6.8412]
[1746439382553,6.8405,146.18,146.16,6.8412]
[1746439384648,3.77568261,146.2,146.16,6.8413]
[1746439385155,3.77568261,146.2,146.15,1.0]
[1746439385454,6.8408,146.18,146.15,7.8415]
[1746439389050,6.841,146.17,146.15,7.8415]
[1746439389853,6.8408,146.18,146.15,7.8415]
[1746439390155,24.08,146.19,146.15,1.0]
[1746439391355,6.8413,146.17,146.15,1.0]
[1746439392456,6.8407,146.18,146.15,7.8418]
[1746439392655,6.8407,146.18,146.15,1.0]
[1746439393359,6.841,146.17,146.15,7.8416]
[1746439395162,6.8414,146.16,146.15,1.0]
[1746439404867,10.61708261,146.16,146.15,1.0]
[1746439407468,24.08,146.19,146.11,2.0]
[1746439407671,3.77568261,146.15,146.11,2.0]
[1746439407972,27.85568261,146.15,146.11,2.0]
[1746439408174,6.8433,146.12,146.11,2.0]
[1746439408466,45.0,146.11,145.99,32.3403308]
[1746439408660,3.77568261,146.04,145.99,32.3403308]
[1746439408972,27.87568261,146.04,145.99,32.3403308]
[1746439409273,6.8475,146.03,145.99,32.3403308]
[1746439409566,3.77568261,146.02,145.99,32.3403308]
[1746439410369,3.77568261,146.01,145.99,32.3403308]
[1746439411474,3.77568261,146.01,145.98,66.70949723]
[1746439411475,3.77568261,146.01,145.98,2.0771]
[1746439411770,6.8479,146.03,145.98,2.0771]
[1746439412267,30.01424749,146.04,145.92,24.1]
[1746439412473,24.1,146.04,145.94,11.92644749]
[1746439412669,30.9471,146.04,146.0,6.8489]
[1746439414774,30.9471,146.04,146.01,6.8484]
[1746439414965,30.9471,146.04,145.94,11.92644749]
[1746439415373,30.9471,146.04,146.0,6.8486]
[1746439416574,30.9471,146.04,146.01,6.8484]
[1746439416779,24.1,146.04,146.01,6.8484]
[1746439416980,24.1,146.04,145.94,11.92644749]
[1746439417177,6.8475,146.03,145.94,6.0122]
[1746439417579,24.1,146.04,145.94,6.0122]
[1746439417779,24.1,146.04,145.99,6.8491]
[1746439418381,6.8479,146.03,145.99,6.8491]
[1746439419179,30.01424749,146.04,145.98,6.8497]
[1746439419379,30.01424749,146.04,145.94,6.0122]
[1746439419780,6.849,146.0,145.96,6.8505]
[1746439419979,31.289,146.0,145.96,6.8505]
[1746439420280,24.44,146.0,145.96,6.8505]
[1746439420478,24.44,146.0,145.92,26.2534]
[1746439420881,31.2892,146.0,145.96,6.8504]
[1746439421582,6.8495,145.99,145.96,6.8504]
[1746439422283,6.8495,145.99,145.95,6.8511]
[1746439422482,24.44,146.0,145.92,26.2534]
[1746439422677,24.44,146.0,145.96,6.8507]
[1746439423182,6.8497,145.99,145.96,6.8507]
[1746439423377,24.44,146.0,145.92,26.2534]
[1746439423378,24.44,146.0,145.95,6.8511]
[1746439423783,6.8496,145.99,145.95,6.8511]
[1746439424679,24.44,146.0,145.92,26.2534]
[1746439425385,6.8503,145.98,145.94,6.8514]
[1746439425685,24.44,146.0,145.94,6.8514]
[1746439425885,6.8501,145.98,145.94,6.8514]
[1746439426286,6.8501,145.98,145.95,6.8512]
[1746439427985,6.8504,145.97,145.95,6.8512]
[1746439428686,6.8504,145.97,145.94,6.8517]
[1746439428883,6.8509,145.96,145.92,2.1534]
[1746439429280,24.44,146.0,145.92,2.1534]
[1746439430091,24.44,146.0,145.93,6.8519]
[1746439430388,24.44,146.0,145.92,2.1534]
[1746439430591,6.8507,145.97,145.94,6.8517]
[1746439430790,24.44,146.0,145.92,2.1534]
[1746439431288,6.8509,145.96,145.93,6.8519]
[1746439432797,6.8509,145.96,145.93,6.8521]
[1746439432988,24.44,146.0,145.92,2.1534]
[1746439433490,6.8501,145.98,145.95,6.851]
[1746439433887,6.8501,145.98,145.92,2.1534]
[1746439434190,24.44,146.0,145.92,2.1534]
[1746439434690,6.851,145.96,145.93,6.8519]
[1746439434892,31.291,145.96,145.93,6.8519]
[1746439435792,31.291,145.96,145.92,2.1534]
[1746439436086,6.8513,145.95,145.92,2.1534]
[1746439436291,24.44,145.96,145.93,6.852]
[1746439436691,31.2912,145.96,145.93,6.852]
[1746439437691,6.8513,145.95,145.93,6.852]
[1746439437991,24.44,145.96,145.93,6.852]
[1746439438192,31.2911,145.96,145.93,6.852]
[1746439438494,24.44,145.96,145.92,9.0059]
[1746439438692,24.44,145.96,145.92,2.1534]
[1746439439191,31.291,145.96,145.93,6.8522]
[1746439440291,24.44,145.96,145.92,9.006]
[1746439440989,24.44,145.96,145.9,4.2188]
[1746439441693,6.852,145.94,145.91,6.8529]
[1746439441994,6.852,145.94,145.9,4.2188]
[1746439442192,6.8515,145.95,145.9,4.2188]
[1746439442392,24.44,145.96,145.9,4.2188]
[1746439442693,24.44,145.96,145.93,6.852]
[1746439442891,24.44,145.96,145.9,4.2188]
[1746439443293,24.44,145.96,145.95,6.8513]
[1746439445703,31.2896,145.99,145.96,6.8506]
[1746439446903,6.85,145.98,145.96,6.8506]
[1746439447698,6.85,145.98,145.95,6.851]
[1746439449099,6.85,145.98,145.9,28.6588]
[1746439449298,6.85,145.98,145.96,6.8508]
[1746439451805,31.2896,145.99,145.96,6.8508]
[1746439452308,24.44,145.99,145.96,6.8508]
[1746439452507,24.44,145.99,145.9,4.2188]
[1746439452702,30.35842804,145.99,145.9,4.2188]
[1746439453011,30.35842804,145.99,145.87,8.06072804]
[1746439453308,30.35842804,145.99,145.87,12.21892804]
[1746439453505,6.8517,145.95,145.87,12.21892804]
[1746439453809,24.44,145.99,145.87,6.3005]
[1746439454010,6.8506,145.97,145.9,5.91842804]
[1746439454210,24.44,145.99,145.9,30.43842804]
[1746439455011,6.8504,145.97,145.94,6.8514]
[1746439455310,24.44,145.99,145.94,6.8514]
[1746439455511,24.44,145.99,145.93,6.852]
[1746439456111,6.8513,145.95,145.93,6.852]
[1746439456410,6.8513,145.95,145.9,30.43842804]
[1746439456611,6.852,145.94,145.9,24.52]
[1746439457008,30.35842804,145.99,145.91,6.8531]
[1746439457210,6.852,145.94,145.9,24.52]
[1746439457708,6.852,145.94,145.92,6.8527]
[1746439458509,6.852,145.94,145.91,6.8528]
[1746439459513,6.852,145.94,145.92,6.8526]
[1746439459814,30.35842804,145.99,145.87,36.73892804]
[1746439460108,5.91842804,145.96,145.87,30.8205]
[1746439460308,6.8531,145.92,145.87,30.8205]
[1746439461918,6.8524,145.93,145.9,6.8534]
[1746439462314,24.52,145.94,145.87,36.73892804]